fUSD/lending_fUSD_20241001
["ID","MTS","AMOUNT","RATE_DAILY","PERIOD"]
[339669419,1727820770296,-592.14,0.00039726,120]
[339669420,1727820770306,-500.0,0.00039726,120]
[339669421,1727820770315,-1575.7,0.00039726,120]
[339669422,1727820770325,-1058.03,0.00039726,120]
[339669423,1727820770335,-500.0,0.00039726,120]
[339669424,1727820770346,-500.0,0.00039726,120]
[339669425,1727820770356,-500.0,0.00039726,120]
[339669426,1727820770367,-794.51,0.00039726,120]
[339669427,1727820770376,-1083.85,0.00039726,120]
[339669428,1727820770385,-500.0,0.00039726,120]
[339669429,1727820770395,-638.28414642,0.00039726,120]
[339669430,1727820770405,-1154.19,0.00039726,120]
[339669431,1727820770415,-506.13,0.00039726,120]
[339669432,1727820770424,-500.0,0.00039726,120]
[339669433,1727820770435,-1462.22,0.00039726,120]
[339669434,1727820770445,-500.0,0.00039726,30]
[339669435,1727820770454,-1285.95,0.00039726,120]
[339669436,1727820770464,-500.0,0.00039726,120]
[339669437,1727820770474,-500.0,0.00039726,120]
[339669438,1727820770483,-506.37002851,0.00039726,120]
[339669439,1727820770492,-500.0,0.00039726,120]
[339669440,1727820770502,-1335.38,0.00039726,120]
[339669441,1727820770512,-1084.42,0.00039726,120]
[339669442,1727820770522,-516.44,0.00039726,120]
[339669443,1727820770531,-1361.89,0.00039726,120]
[339669444,1727820770541,-500.0,0.00039726,120]
[339669445,1727820770550,-669.44,0.00039726,120]
[339669446,1727820770560,-500.0,0.00039726,30]
[339669447,1727820770569,-634.68,0.00039726,120]
[339669448,1727820770579,-502.44244347,0.00039726,120]
[339669449,1727820770589,-1067.45,0.00039726,120]
[339669450,1727820770598,-500.0,0.00039726,120]
[339669451,1727820770608,-1550.27,0.00039726,120]
[339669452,1727820770618,-947.2,0.00039726,120]
[339669453,1727820770628,-500.0,0.00039726,120]
[339669454,1727820770638,-745.55,0.00039726,120]
[339669455,1727820770648,-1478.79,0.00039726,120]
[339669456,1727820770661,-533.51,0.00039726,120]
[339669457,1727820770671,-500.0,0.00039726,120]
[339669458,1727820770681,-500.0,0.00039726,120]
[339669459,1727820770691,-500.0,0.00039726,120]
[339669460,1727820770700,-1998.44,0.00039726,120]
[339669461,1727820770710,-1648.28,0.00039726,120]
[339669462,1727820770720,-500.0,0.00039726,120]
[339669463,1727820770734,-630.72,0.00039726,120]
[339669464,1727820770745,-500.0,0.00039726,120]
[339669465,1727820770755,-690.57,0.00039726,120]
[339669466,1727820770766,-1526.16,0.00039726,120]
[339669467,1727820770776,-645.27,0.00039726,120]
[339669468,1727820770786,-529.17,0.00039726,120]
[339669469,1727820770796,-500.0,0.00039726,120]
[339669470,1727820770805,-1154.28,0.00039726,120]
[339669471,1727820770815,-500.0,0.00039726,120]
[339669472,1727820770825,-1705.01,0.00039726,120]
[339669473,1727820770834,-500.0,0.00039726,120]
[339669474,1727820770844,-500.0,0.00039726,120]
[339669475,1727820770854,-500.0,0.00039726,120]
[339669476,1727820770864,-500.0,0.00039726,120]
[339669477,1727820770874,-1121.16,0.00039726,120]
[339669478,1727820770884,-1850.36,0.00039726,120]
[339669479,1727820770893,-1129.51,0.00039726,120]
[339669480,1727820770903,-978.74,0.00039726,120]
[339669481,1727820770913,-889.83,0.00039726,120]
[339669482,1727820770922,-791.42,0.00039726,120]
[339669483,1727820770932,-673.51,0.00039726,120]
[339669484,1727820770941,-500.0,0.00039726,120]
[339669485,1727820770951,-366.16619344,0.00039726,120]
[339669486,1727820770961,-500.0,0.00039726,120]
[339669487,1727820770971,-500.0,0.00039726,120]
[339669488,1727820770980,-500.0,0.00039726,120]
[339669489,1727820770990,-500.0,0.00039726,120]
[339669490,1727820770999,-500.0,0.00039726,120]
[339669491,1727820771009,-683.14,0.00039726,120]
[339669492,1727820771019,-1883.48,0.00039726,120]
[339669493,1727820771030,-500.0,0.00039726,120]
[339669494,1727820771040,-2097.27,0.00039726,120]
[339669495,1727820771050,-500.0,0.00039726,120]
[339669496,1727820771059,-500.0,0.00039726,120]
[339669497,1727820771069,-1083.58,0.00039726,120]
[339669498,1727820771080,-1341.3,0.00039726,120]
[339669499,1727820771091,-523.47,0.00039726,120]
[339669500,1727820771102,-726.8,0.00039726,120]
[339669501,1727820771111,-681.82,0.00039726,120]
[339669502,1727820771121,-2106.40204085,0.00039726,120]
[339669503,1727820772073,-740.91795915,0.00039726,120]
[339669504,1727820772083,-767.3,0.00039726,120]
[339669505,1727820772093,-534.24,0.00039726,120]
[339669506,1727820772103,-340.06324818,0.00039726,120]
[339669507,1727820772116,-159.93675182,0.00039726,120]
[339669508,1727820772126,-476.5592876,0.00039726,120]
[339669509,1727820772138,-23.4407124,0.00039726,120]
[339669510,1727820772148,-304.60928745,0.00039726,5]
[339669511,1727820772160,-951.22071255,0.00039726,5]
[339669512,1727820772170,-641.21,0.00039726,120]
[339669513,1727820772180,-500.0,0.00039726,120]
[339669514,1727820772191,-1095.54,0.00039726,120]
[339669515,1727820772204,-591.17,0.00039726,120]
[339669516,1727820772214,-2202.17,0.00039726,120]
[339669517,1727820772225,-500.0,0.00039726,120]
[339669518,1727820772235,-596.83,0.00039726,120]
[339669519,1727820772244,-500.0,0.00039726,120]
[339669520,1727820772254,-500.0,0.00039726,120]
[339669521,1727820772264,-577.02,0.00039726,120]
[339669522,1727820772275,-649.43,0.00039726,120]
[339669523,1727820772285,-500.0,0.00039726,120]
[339669524,1727820772295,-500.0,0.00039726,120]
[339669525,1727820772306,-500.0,0.00039726,120]
[339669526,1727820772315,-500.0,0.00039726,120]
[339669527,1727820772326,-3472.21,0.00039726,120]
[339669528,1727820772667,-2000.0,0.00039726,30]
[339669529,1727820772678,-943.1,0.00039726,120]
[339669530,1727820772688,-500.0,0.00039726,120]
[339669531,1727820772698,-1481.97,0.00039726,120]
[339669532,1727820772708,-500.0,0.00039726,120]
[339669533,1727820772718,-500.0,0.00039726,120]
[339669534,1727820772728,-1133.76,0.00039726,120]
[339669535,1727820772740,-500.0,0.00039726,120]
[339669536,1727820772750,-1356.91,0.00039726,30]
[339669537,1727820772760,-500.0,0.00039726,120]
[339669538,1727820772770,-1544.47,0.00039726,120]
[339669539,1727820772780,-500.0,0.00039726,120]
[339669540,1727820772790,-767.63,0.00039726,120]
[339669541,1727820772799,-1014.81,0.00039726,120]
[339669542,1727820772809,-500.0,0.00039726,120]
[339669543,1727820772819,-500.0,0.00039726,120]
[339669544,1727820772830,-875.49,0.00039726,120]
[339669545,1727820772839,-1665.5,0.00039726,120]
[339669546,1727820772849,-500.0,0.00039726,120]
[339669547,1727820772858,-500.0,0.00039726,120]
[339669548,1727820772869,-1118.58,0.00039726,120]
[339669549,1727820772879,-500.0,0.00039726,120]
[339669550,1727820772889,-500.0,0.00039726,120]
[339669551,1727820772898,-500.0,0.00039726,120]
[339669552,1727820772908,-500.0,0.00039726,30]
[339669553,1727820772919,-500.0,0.00039726,120]
[339669554,1727820772928,-500.0,0.00039726,120]
[339669555,1727820772938,-1943.98,0.00039726,120]
[339669556,1727820772948,-500.0,0.00039726,120]
[339669557,1727820772958,-500.0,0.00039726,120]
[339669558,1727820772967,-504.15140419,0.00039726,120]
[339669559,1727820772977,-500.0,0.00039726,120]
[339669560,1727820772988,-771.94,0.00039726,120]
[339669561,1727820772998,-3186.38,0.00039726,120]
[339669562,1727820773008,-500.0,0.00039726,120]
[339669563,1727820773017,-4357.71,0.00039726,120]
[339669564,1727820773027,-1781.52,0.00039726,120]
[339669565,1727820773036,-500.0,0.00039726,120]
[339669566,1727820773046,-500.0,0.00039726,120]
[339669567,1727820773055,-2741.84,0.00039726,120]
[339669568,1727820773065,-500.0,0.00039726,120]
[339669569,1727820773076,-2160.18,0.00039726,120]
[339669570,1727820773086,-2622.79,0.00039726,120]
[339669571,1727820773096,-188.17958712,0.00039726,120]
[339669572,1727820773105,-500.0,0.00039726,120]
[339669573,1727820773114,-1453.92,0.00039726,120]
[339669574,1727820773124,-1585.54,0.00039726,120]
[339669575,1727820773134,-500.0,0.00039726,120]
[339669576,1727820773143,-1793.64,0.00039726,120]
[339669577,1727820773153,-500.0,0.00039726,120]
[339669578,1727820773162,-1356.0,0.00039726,120]
[339669579,1727820773171,-500.0,0.00039726,120]
[339669580,1727820773181,-716.89,0.00039726,120]
[339669581,1727820773191,-500.0,0.00039726,120]
[339669582,1727820773200,-500.0,0.00039726,120]
[339669583,1727820773209,-500.0,0.00039726,120]
[339669584,1727820773219,-500.0,0.00039726,120]
[339669585,1727820773228,-500.0,0.00039726,120]
[339669586,1727820773238,-3120.18,0.00039726,120]
[339669587,1727820773250,-2229.65,0.00039726,120]
[339669588,1727820773260,-561.48,0.00039726,120]
[339669589,1727820773270,-2562.34,0.00039726,120]
[339669590,1727820773280,-500.0,0.00039726,120]
[339669591,1727820773291,-1720.36,0.00039726,120]
[339669592,1727820773300,-500.0,0.00039726,120]
[339669593,1727820773310,-1264.36,0.00039726,120]
[339669594,1727820773319,-500.0,0.00039726,120]
[339669595,1727820773328,-500.0,0.00039726,120]
[339669596,1727820773339,-1401.84,0.00039726,120]
[339669597,1727820773349,-500.0,0.00039726,120]
[339669598,1727820773358,-541.62,0.00039726,120]
[339669599,1727820773368,-1202.32,0.00039726,120]
[339669600,1727820773377,-500.0,0.00039726,120]
[339669601,1727820773387,-500.0,0.00039726,120]
[339669602,1727820773396,-500.0,0.00039726,120]
[339669603,1727820773405,-500.0,0.00039726,120]
[339669604,1727820773415,-500.0,0.00039726,120]
[339669605,1727820773424,-1812.26390592,0.00039726,120]
[339669606,1727820773458,-57.52609408,0.00039726,120]
[339669607,1727820773468,-683.16,0.00039726,120]
[339669608,1727820773478,-547.35,0.00039726,120]
[339669609,1727820773487,-336.81830513,0.00039726,120]
[339669610,1727820773497,-95.45560129,0.00039726,120]
[339669611,1727820773509,-926.49439871,0.00039726,120]
[339669612,1727820773519,-500.0,0.00039726,120]
[339669613,1727820773528,-1116.83,0.00039726,120]
[339669614,1727820773539,-1310.69,0.00039726,120]
[339669615,1727820773551,-1082.8,0.00039726,120]
[339669616,1727820773560,-537.73,0.00039726,120]
[339669617,1727820773570,-500.0,0.00039726,120]
[339669618,1727820773579,-1224.9,0.00039726,120]
[339669619,1727820773589,-500.0,0.00039726,120]
[339669620,1727820773599,-500.0,0.00039726,120]
[339669621,1727820773608,-500.0,0.00039726,120]
[339669622,1727820773618,-500.0,0.00039726,120]
[339669623,1727820773627,-500.0,0.00039726,120]
[339669624,1727820773637,-1286.67,0.00039726,120]
[339669625,1727820773646,-500.0,0.00039726,120]
[339669626,1727820773658,-657.58,0.00039726,120]
[339669627,1727820773667,-500.0,0.00039726,120]
[339669628,1727820773677,-500.0,0.00039726,120]
[339669629,1727820773686,-500.0,0.00039726,120]
[339669630,1727820773696,-1073.31,0.00039726,120]
[339669631,1727820773706,-541.92,0.00039726,120]
[339669632,1727820773716,-2339.06,0.00039726,120]
[339669633,1727820773726,-744.91,0.00039726,120]
[339669634,1727820773736,-500.0,0.00039726,120]
[339669635,1727820773746,-817.84,0.00039726,120]
[339669636,1727820773755,-2599.93,0.00039726,120]
[339669637,1727820773765,-500.0,0.00039726,120]
[339669638,1727820773775,-1750.82,0.00039726,120]
[339669639,1727820773785,-579.27,0.00039726,120]
[339669640,1727820773798,-613.45409688,0.00039726,120]
[339669641,1727820773807,-500.0,0.00039726,120]
[339669642,1727820773816,-500.0,0.00039726,120]
[339669643,1727820773826,-908.91,0.00039726,120]
[339669644,1727820773835,-1921.1,0.00039726,120]
[339669645,1727820773846,-500.0,0.00039726,120]
[339669646,1727820773855,-1558.18,0.00039726,120]
[339669647,1727820773864,-517.15,0.00039726,120]
[339669648,1727820773874,-559.26,0.00039726,120]
[339669649,1727820773883,-742.38,0.00039726,120]
[339669650,1727820773892,-500.0,0.00039726,120]
[339669651,1727820773901,-1507.58,0.00039726,120]
[339669652,1727820773910,-538.26198847,0.00039726,120]
[339669653,1727820773920,-598.78185369,0.00039726,120]
[339669654,1727820773930,-500.0,0.00039726,120]
[339669655,1727820773939,-538.46955258,0.00039726,120]
[339669656,1727820773948,-1812.22,0.00039726,120]
[339669657,1727820773957,-865.43,0.00039726,120]
[339669658,1727820773966,-912.77,0.00039726,120]
[339669659,1727820773976,-503.29,0.00039726,120]
[339669660,1727820773985,-500.0,0.00039726,120]
[339669661,1727820773994,-538.32,0.00039726,120]
[339669662,1727820774004,-1232.27,0.00039726,120]
[339669663,1727820774014,-612.63,0.00039726,120]
[339669664,1727820774023,-727.23,0.00039726,120]
[339669665,1727820774032,-500.0,0.00039726,120]
[339669666,1727820774045,-500.0,0.00039726,120]
[339669667,1727820774054,-502.65290936,0.00039726,120]
[339669668,1727820774063,-2434.31,0.00039726,120]
[339669669,1727820774073,-1123.1,0.00039726,120]
[339669670,1727820774082,-500.0,0.00039726,120]
[339669671,1727820774091,-500.0,0.00039726,120]
[339669672,1727820774100,-609.21,0.00039726,120]
[339669673,1727820774109,-20000.0,0.00039726,2]
[339669674,1727820774119,-726.12,0.00039726,120]
[339669675,1727820774128,-639.42,0.00039726,120]
[339669676,1727820774137,-500.0,0.00039726,120]
[339669677,1727820774147,-909.97,0.00039726,120]
[339669678,1727820774156,-500.0,0.00039726,120]
[339669679,1727820774165,-500.0,0.00039726,120]
[339669680,1727820774175,-2645.4,0.00039726,120]
[339669681,1727820774184,-1769.05,0.00039726,120]
[339669682,1727820774193,-719.11,0.00039726,120]
[339669683,1727820774203,-908.05,0.00039726,120]
[339669684,1727820774212,-500.0,0.00039726,120]
[339669685,1727820774222,-500.0,0.00039726,120]
[339669686,1727820774231,-500.0,0.00039726,120]
[339669687,1727820774243,-500.0,0.00039726,120]
[339669688,1727820774252,-1353.18,0.00039726,120]
[339669689,1727820774261,-521.43727478,0.00039726,120]
[339669690,1727820774270,-1681.46,0.00039726,120]
[339669691,1727820774279,-500.0,0.00039726,120]
[339669692,1727820774289,-500.0,0.00039726,120]
[339669693,1727820774299,-574.63,0.00039726,120]
[339669694,1727820774308,-1427.27,0.00039726,120]
[339669695,1727820774317,-1194.08,0.00039726,120]
[339669696,1727820774326,-1852.67,0.00039726,120]
[339669697,1727820774335,-1271.22,0.00039726,120]
[339669698,1727820774345,-578.88,0.00039726,120]
[339669699,1727820774354,-1006.55,0.00039726,120]
[339669700,1727820774364,-1067.38,0.00039726,120]
[339669701,1727820774373,-500.0,0.00039726,120]
[339669702,1727820774382,-500.0,0.00039726,120]
[339669703,1727820774391,-2065.44,0.00039726,120]
[339669704,1727820774400,-997.79,0.00039726,120]
[339669705,1727820774409,-676.91,0.00039726,120]
[339669706,1727820774418,-500.0,0.00039726,120]
[339669707,1727820774428,-500.0,0.00039726,120]
[339669708,1727820774437,-500.0,0.00039726,120]
[339669709,1727820774446,-500.0,0.00039726,120]
[339669710,1727820774455,-500.0,0.00039726,120]
[339669711,1727820774464,-1299.08,0.00039726,120]
[339669712,1727820774474,-500.0,0.00039726,120]
[339669713,1727820774483,-7133.94,0.00039726,120]
[339669714,1727820774493,-2948.18,0.00039726,120]
[339669715,1727820774502,-876.55,0.00039726,120]
[339669716,1727820774511,-500.0,0.00039726,120]
[339669717,1727820774521,-500.0,0.00039726,120]
[339669718,1727820774530,-500.0,0.00039726,120]
[339669719,1727820774541,-500.0,0.00039726,120]
[339669720,1727820774550,-1297.59,0.00039726,120]
[339669721,1727820774560,-500.0,0.00039726,120]
[339669722,1727820774569,-500.0,0.00039726,120]
[339669723,1727820774578,-1540.7,0.00039726,120]
[339669724,1727820774588,-3085.28,0.00039726,120]
[339669725,1727820774598,-835.52,0.00039726,120]
[339669726,1727820774607,-1360.6,0.00039726,120]
[339669727,1727820774616,-2073.43,0.00039726,120]
[339669728,1727820774626,-500.0,0.00039726,120]
[339669729,1727820774635,-500.0,0.00039726,120]
[339669730,1727820774644,-500.0,0.00039726,120]
[339669731,1727820774655,-500.0,0.00039726,120]
[339669732,1727820774665,-500.0,0.00039726,120]
[339669733,1727820774675,-920.24,0.00039726,120]
[339669734,1727820774684,-1196.56,0.00039726,120]
[339669735,1727820774694,-500.0,0.00039726,120]
[339669736,1727820774705,-1565.97,0.00039726,7]
[339669737,1727820774714,-2161.41,0.00039726,120]
[339669738,1727820774723,-682.18,0.00039726,120]
[339669739,1727820774735,-500.0,0.00039726,120]
[339669740,1727820774745,-984.06,0.00039726,120]
[339669741,1727820774755,-893.82,0.00039726,120]
[339669742,1727820774764,-614.76,0.00039726,120]
[339669743,1727820774774,-500.0,0.00039726,120]
[339669744,1727820774783,-556.32,0.00039726,120]
[339669745,1727820774795,-4017.33,0.00039726,120]
[339669746,1727820774804,-1530.83,0.00039726,120]
[339669747,1727820774814,-500.0,0.00039726,120]
[339669748,1727820774823,-500.0,0.00039726,120]
[339669749,1727820774832,-2813.32,0.00039726,120]
[339669750,1727820774841,-989.03,0.00039726,120]
[339669751,1727820774850,-500.0,0.00039726,120]
[339669752,1727820774859,-1381.53,0.00039726,120]
[339669753,1727820774868,-500.0,0.00039726,120]
[339669754,1727820774877,-500.0,0.00039726,120]
[339669755,1727820774887,-625.33,0.00039726,120]
[339669756,1727820774896,-267.68745436,0.00039726,120]
[339669757,1727820774905,-500.0,0.00039726,120]
[339669758,1727820774915,-3207.82,0.00039726,120]
[339669759,1727820774924,-529.0,0.00039726,120]
[339669760,1727820774934,-500.0,0.00039726,120]
[339669761,1727820774944,-500.0,0.00039726,120]
[339669762,1727820774953,-1336.39,0.00039726,120]
[339669763,1727820774962,-1417.06,0.00039726,120]
[339669764,1727820775098,-409.70254554,0.00039726,120]
[339669765,1727820775107,-691.8,0.00039726,120]
[339669766,1727820775116,-829.5,0.00039726,120]
[339669767,1727820775125,-1750.69,0.00039726,120]
[339669768,1727820775134,-1683.2,0.00039726,120]
[339669769,1727820775144,-518.37,0.00039726,120]
[339669770,1727820775153,-500.0,0.00039726,120]
[339669771,1727820775162,-500.0,0.00039726,120]
[339669772,1727820775171,-565.37,0.00039726,120]
[339669773,1727820775181,-500.0,0.00039726,120]
[339669774,1727820775190,-1040.53,0.00039726,120]
[339669775,1727820775200,-500.0,0.00039726,120]
[339669776,1727820775209,-500.0,0.00039726,120]
[339669777,1727820775219,-2903.08,0.00039726,120]
[339669778,1727820775228,-1019.42,0.00039726,120]
[339669779,1727820775238,-500.0,0.00039726,120]
[339669780,1727820775247,-685.88,0.00039726,120]
[339669781,1727820775256,-3679.16,0.00039726,120]
[339669782,1727820775265,-1591.74,0.00039726,120]
[339669783,1727820775275,-509.48,0.00039726,120]
[339669784,1727820775284,-500.0,0.00039726,120]
[339669785,1727820775294,-500.0,0.00039726,120]
[339669786,1727820775303,-931.69,0.00039726,120]
[339669787,1727820775312,-846.41,0.00039726,120]
[339669788,1727820775321,-500.0,0.00039726,120]
[339669789,1727820775332,-501.68411938,0.00039726,120]
[339669790,1727820775341,-579.38,0.00039726,120]
[339669791,1727820775351,-500.0,0.00039726,120]
[339669792,1727820775360,-500.0,0.00039726,120]
[339669793,1727820775369,-658.41,0.00039726,120]
[339669794,1727820775378,-500.0,0.00039726,120]
[339669795,1727820775389,-938.76,0.00039726,120]
[339669796,1727820775398,-500.0,0.00039726,120]
[339669797,1727820775407,-500.0,0.00039726,120]
[339669798,1727820775417,-633.77,0.00039726,120]
[339669799,1727820775426,-1178.43,0.00039726,120]
[339669800,1727820775435,-631.01,0.00039726,120]
[339669801,1727820775444,-500.0,0.00039726,120]
[339669802,1727820775453,-500.0,0.00039726,120]
[339669803,1727820775462,-4318.07,0.00039726,120]
[339669804,1727820775471,-1300.84,0.00039726,120]
[339669805,1727820775481,-1477.24,0.00039726,120]
[339669806,1727820775490,-649.66,0.00039726,120]
[339669807,1727820775499,-3571.84,0.00039726,24]
[339669808,1727820775508,-790.35,0.00039726,120]
[339669809,1727820775517,-500.0,0.00039726,120]
[339669810,1727820775527,-500.0,0.00039726,120]
[339669811,1727820775537,-500.0,0.00039726,120]
[339669812,1727820775548,-2269.39,0.00039726,120]
[339669813,1727820775557,-509.05,0.00039726,120]
[339669814,1727820775567,-950.35,0.00039726,14]
[339669815,1727820775577,-906.26,0.00039726,120]
[339669816,1727820775586,-695.43,0.00039726,120]
[339669817,1727820775595,-500.0,0.00039726,120]
[339669818,1727820775605,-5863.43,0.00039726,120]
[339669819,1727820775614,-500.0,0.00039726,120]
[339669820,1727820775623,-1343.7,0.00039726,120]
[339669821,1727820775633,-500.0,0.00039726,120]
[339669822,1727820775643,-500.0,0.00039726,120]
[339669823,1727820775652,-501.6662664,0.00039726,120]
[339669824,1727820775666,-500.0,0.00039726,120]
[339669825,1727820775676,-500.0,0.00039726,2]
[339669826,1727820775685,-1433.18,0.00039726,120]
[339669827,1727820775695,-2892.65,0.00039726,120]
[339669828,1727820775706,-2031.89,0.00039726,120]
[339669829,1727820775715,-1519.54,0.00039726,120]
[339669830,1727820775724,-558.87,0.00039726,120]
[339669831,1727820775735,-500.0,0.00039726,120]
[339669832,1727820775745,-501.85832973,0.00039726,120]
[339669833,1727820775754,-5052.98,0.00039726,120]
[339669834,1727820775764,-2464.24,0.00039726,120]
[339669835,1727820775773,-512.38740041,0.00039726,120]
[339669836,1727820775782,-642.05,0.00039726,120]
[339669837,1727820775795,-598.73,0.00039726,120]
[339669838,1727820775804,-581.71,0.00039726,120]
[339669839,1727820775814,-1855.45,0.00039726,120]
[339669840,1727820775823,-1193.22,0.00039726,120]
[339669841,1727820775832,-2055.41,0.00039726,120]
[339669842,1727820775842,-500.0,0.00039726,120]
[339669843,1727820775851,-750.15,0.00039726,120]
[339669844,1727820775860,-2691.72,0.00039726,120]
[339669845,1727820775870,-500.0,0.00039726,120]
[339669846,1727820775879,-500.0,0.00039726,120]
[339669847,1727820775888,-500.0,0.00039726,120]
[339669848,1727820775897,-548.81,0.00039726,120]
[339669849,1727820775906,-6652.18,0.00039726,120]
[339669850,1727820775915,-500.0,0.00039726,120]
[339669851,1727820775924,-513.2,0.00039726,120]
[339669852,1727820775933,-500.0,0.00039726,120]
[339669853,1727820775943,-1189.34,0.00039726,120]
[339669854,1727820775952,-806.35,0.00039726,120]
[339669855,1727820775961,-4738.33,0.00039726,120]
[339669856,1727820775972,-500.0,0.00039726,120]
[339669857,1727820775980,-500.0,0.00039726,120]
[339669858,1727820775990,-500.0,0.00039726,120]
[339669859,1727820775999,-917.73,0.00039726,120]
[339669860,1727820776009,-500.0,0.00039726,120]
[339669861,1727820776018,-500.0,0.00039726,120]
[339669862,1727820776027,-500.0,0.00039726,120]
[339669863,1727820776037,-533.87,0.00039726,120]
[339669864,1727820776049,-469.2826164,0.00039726,120]
[339669865,1727820776058,-945.7,0.00039726,120]
[339669866,1727820776067,-5194.61,0.00039726,120]
[339669867,1727820776076,-500.0,0.00039726,120]
[339669868,1727820776084,-1116.02,0.00039726,120]
[339669869,1727820776096,-500.0,0.00039726,120]
[339669870,1727820776106,-832.73,0.00039726,120]
[339669871,1727820776115,-500.0,0.00039726,120]
[339669872,1727820776124,-575.56,0.00039726,120]
[339669873,1727820776133,-500.0,0.00039726,120]
[339669874,1727820776142,-2703.66,0.00039726,120]
[339669875,1727820776151,-902.25,0.00039726,120]
[339669876,1727820776161,-1320.9,0.00039726,120]
[339669877,1727820776170,-500.0,0.00039726,120]
[339669878,1727820776180,-659.17,0.00039726,120]
[339669879,1727820776190,-2578.82,0.00039726,120]
[339669880,1727820776199,-1704.81,0.00039726,120]
[339669881,1727820776208,-500.0,0.00039726,120]
[339669882,1727820776217,-1586.77,0.00039726,120]
[339669883,1727820776226,-1388.49,0.00039726,120]
[339669884,1727820776237,-834.76,0.00039726,120]
[339669885,1727820776246,-500.0,0.00039726,120]
[339669886,1727820776255,-944.31,0.00039726,120]
[339669887,1727820776264,-500.0,0.00039726,120]
[339669888,1727820776274,-500.0,0.00039726,120]
[339669889,1727820776284,-500.0,0.00039726,120]
[339669890,1727820776295,-500.0,0.00039726,120]
[339669891,1727820776304,-500.0,0.00039726,120]
[339669892,1727820776314,-793.38,0.00039726,120]
[339669893,1727820776324,-160.15598816,0.00039726,120]
[339669894,1727820776334,-500.0,0.00039726,120]
[339669895,1727820776344,-2627.22,0.00039726,120]
[339669896,1727820776354,-1639.8,0.00039726,120]
[339669897,1727820776363,-500.0,0.00039726,120]
[339669898,1727820776372,-725.25,0.00039726,120]
[339669899,1727820776381,-1519.29,0.00039726,120]
[339669900,1727820776391,-500.0,0.00039726,120]
[339669901,1727820776400,-3122.29,0.00039726,120]
[339669902,1727820776410,-5376.69,0.00039726,120]
[339669903,1727820776419,-957.13,0.00039726,120]
[339669904,1727820776429,-500.0,0.00039726,120]
[339669905,1727820776438,-742.86,0.00039726,120]
[339669906,1727820776447,-2668.85,0.00039726,120]
[339669907,1727820776457,-500.0,0.00039726,120]
[339669908,1727820776466,-648.45343594,0.00039726,120]
[339669909,1727820776476,-842.39,0.00039726,120]
[339669910,1727820776485,-1188.41,0.00039726,120]
[339669911,1727820776494,-510.15574466,0.00039726,120]
[339669912,1727820776504,-977.8,0.00039726,120]
[339669913,1727820776513,-1574.81,0.00039726,120]
[339669914,1727820776522,-500.0,0.00039726,120]
[339669915,1727820776531,-3167.05,0.00039726,120]
[339669916,1727820776541,-835.75,0.00039726,120]
[339669917,1727820776557,-500.0,0.00039726,120]
[339669918,1727820776567,-500.0,0.00039726,120]